bitfinex-derivatives/quotes_SOLF0:USTF0_20251107
["timestamp","ask_amount","ask_price","bid_price","bid_amount"]
[1762479659246,0.04227894,155.21,155.17,3.00580633]
[1762479661335,0.21227894,155.21,155.17,0.04580633]
[1762479661535,1.45,155.2,155.06,2.96]
[1762479661748,0.17,155.17,155.06,2.96]
[1762479662551,0.21737196,155.13,155.1,0.04331335]
[1762479663142,6.02237196,155.13,155.1,0.04331335]
[1762479663338,0.04737196,155.13,155.1,0.04331335]
[1762479663849,0.04737196,155.13,155.1,3.00331335]
[1762479664851,0.04737196,155.13,155.1,8.80911335]
[1762479665040,0.04737196,155.13,155.11,2.96]
[1762479665240,0.04737196,155.13,155.1,0.04331335]
[1762479666055,6.02207196,155.13,155.1,0.04331335]
[1762479666556,5.8053,155.12,155.1,0.04331335]
[1762479666850,0.04737196,155.13,155.1,0.04331335]
[1762479667055,5.8022,155.2,155.1,3.00331335]
[1762479667360,0.17,155.23,155.1,2.96]
[1762479667655,0.17,155.23,155.13,2.96]
[1762479668049,0.04759675,155.2,155.16,0.04517932]
[1762479668446,0.26759675,155.2,155.16,0.04517932]
[1762479668846,0.22,155.18,155.16,0.04517932]
[1762479669155,0.22,155.18,155.05,2.96]
[1762479669455,0.22,155.18,155.06,8.7671]
[1762479669651,0.22,155.18,155.06,2.96]
[1762479670047,0.22,155.13,155.1,0.04818467]
[1762479670447,5.8053,155.12,155.1,0.04818467]
[1762479670652,6.0153,155.12,155.1,0.04818467]
[1762479670854,0.21,155.12,155.1,0.04818467]
[1762479671053,6.0152,155.12,155.1,0.04818467]
[1762479671250,0.21,155.12,155.1,0.04818467]
[1762479672459,0.21,155.11,155.02,3.2]
[1762479672662,0.21,155.16,155.02,3.2]
[1762479673258,0.21,155.16,155.05,3.2]
[1762479673657,0.04229003,155.12,155.09,0.04180712]
[1762479675359,5.8054,155.11,155.09,0.04180712]
[1762479675554,0.04229003,155.12,155.09,3.24180712]
[1762479675965,0.21,155.2,155.1,3.2]
[1762479676259,0.21,155.2,155.08,4.39229156]
[1762479676260,0.21,155.2,155.11,9.0053]
[1762479676563,0.21,155.2,155.11,3.2]
[1762479676753,5.8027,155.19,155.12,5.8049]
[1762479677059,0.04393143,155.17,155.14,0.04663388]
[1762479677258,0.25393143,155.17,155.14,0.04663388]
[1762479678158,6.0138,155.16,155.14,0.04663388]
[1762479678853,0.21,155.16,155.14,0.04663388]
[1762479679555,0.04393143,155.17,155.14,0.04663388]
[1762479679856,0.25393143,155.17,155.14,0.04663388]
[1762479680158,5.8052,155.12,155.06,3.2]
[1762479680563,0.21,155.2,155.06,3.2]
[1762479680755,5.06502055,155.2,155.11,5.8053]
[1762479680960,5.06502055,155.2,155.11,9.0053]
[1762479681256,0.0417338,155.17,155.14,0.04440239]
[1762479681663,0.2517338,155.17,155.14,0.04440239]
[1762479681963,0.21,155.15,155.06,3.2]
[1762479682356,4.8616669,155.14,155.06,3.2]
[1762479682562,5.07161233,155.13,155.06,3.2]
[1762479682764,0.258298,155.11,155.08,0.04527997]
[1762479682959,0.25335035,155.11,155.08,0.04505826]
[1762479683165,0.04335035,155.11,155.08,0.04505826]
[1762479683758,0.04335035,155.11,155.08,3.24505826]
[1762479683960,4.86174132,155.17,155.1,3.2]
[1762479684164,0.21,155.2,155.1,3.2]
[1762479684371,5.07294135,155.19,155.1,3.2]
[1762479684565,0.21,155.19,155.1,3.2]
[1762479685062,0.04532528,155.16,155.13,0.04854491]
[1762479685266,0.04532528,155.16,155.13,3.24854491]
[1762479685967,0.04532528,155.16,155.13,0.04854491]
[1762479686170,0.04532528,155.16,155.13,3.24854491]
[1762479691074,0.04532528,155.16,155.15,3.2]
[1762479691472,0.21,155.25,155.15,4.48]
[1762479691473,4.87713235,155.21,155.15,4.48]
[1762479691671,0.21,155.25,155.15,3.2]
[1762479691873,4.88019336,155.24,155.15,3.2]
[1762479692077,5.14019336,155.23,155.15,3.2]
[1762479692279,0.26,155.21,155.11,3.2]
[1762479692478,0.26,155.17,155.14,0.04435186]
[1762479692777,0.26,155.17,155.14,0.04119705]
[1762479693183,0.26,155.15,155.07,3.2]
[1762479693381,0.26,155.19,155.07,3.2]
[1762479693680,5.8037,155.16,155.09,3.2]
[1762479694082,5.8041,155.15,155.09,3.2]
[1762479694271,0.04414207,155.14,155.1,3.24343438]
[1762479695972,0.30414207,155.14,155.1,0.04343438]
[1762479696681,6.0652,155.12,155.1,0.04343438]
[1762479698781,0.26,155.11,155.1,0.04343438]
[1762479700483,5.17403097,155.11,155.1,0.04343438]
[1762479700986,5.8067,155.08,155.02,3.01]
[1762479701886,0.04809944,155.07,155.03,3.05160123]
[1762479703382,0.04809944,155.07,155.06,3.01]
[1762479707100,0.04809944,155.07,155.05,3.01]
[1762479707699,0.04809944,155.07,155.03,3.05160123]
[1762479707900,0.30809944,155.07,155.03,0.04160123]
[1762479708699,0.26,155.05,155.03,0.04160123]
[1762479709296,4.73326168,155.04,155.03,0.04160123]
[1762479709501,4.73330759,155.04,155.03,0.04160123]
[1762479709703,4.99330759,155.04,155.03,0.04160123]
[1762479709905,6.29333307,155.04,154.95,3.01]
[1762479710097,4.73333307,155.03,154.95,3.01]
[1762479710402,0.26,155.04,154.95,3.01]
[1762479710604,4.73018722,155.03,154.96,8.8209]
[1762479710799,0.04100862,155.01,154.98,0.04766215]
[1762479711104,0.04100862,155.01,154.98,3.05766215]
[1762479711999,4.72678978,155.08,155.01,8.8189]
[1762479712201,4.92188533,155.1,155.01,3.01]
[1762479712395,5.22217048,155.13,155.01,3.01]
[1762479712598,4.72714721,155.12,155.06,8.817]
[1762479712803,4.92217048,155.14,155.07,3.01]
[1762479712998,4.92217048,155.14,154.98,9.4]
[1762479712999,0.04912319,155.12,155.09,3.05668624]
[1762479713203,0.04705526,155.12,155.09,3.05955838]
[1762479718811,0.34705526,155.12,155.09,0.04955838]
[1762479719106,5.8056,155.11,155.09,0.04955838]
[1762479719314,0.3,155.1,155.09,0.04955838]
[1762479719607,5.8056,155.11,155.05,3.01]
[1762479720009,0.04705526,155.12,155.05,3.01]
[1762479720508,6.15235526,155.12,155.07,0.04589551]
[1762479720805,0.3,155.11,155.07,0.04589551]
[1762479721000,6.1057,155.11,155.07,0.04589551]
[1762479721607,6.1062,155.09,155.07,0.04589551]
[1762479721800,4.72490831,155.11,155.07,0.04589551]
[1762479722100,0.04705526,155.12,155.07,3.05589551]
[1762479722311,0.34705526,155.12,155.07,3.05589551]
[1762479722501,0.04705526,155.12,155.07,3.05589551]
[1762479723412,4.92178976,155.18,155.07,3.05589551]
[1762479723600,5.22178976,155.2,155.08,3.01]
[1762479723799,10.52568438,155.19,155.12,5.8048]
[1762479724007,4.92178976,155.21,155.12,3.01]
[1762479724213,4.72260403,155.2,155.12,3.01]
[1762479724507,0.04675457,155.18,155.14,3.0568689]
[1762479724713,0.04409094,155.18,155.14,3.05166195]
[1762479726112,74.83762697,155.28,155.14,3.05166195]
[1762479726113,4.92178976,155.26,155.16,3.01]
[1762479726304,0.39,155.27,155.17,3.01]
[1762479726506,4.71488179,155.26,155.17,3.01]
[1762479726710,4.71488179,155.25,155.17,3.01]
[1762479727010,0.39,155.27,155.17,3.01]
[1762479727211,0.04691675,155.24,155.2,0.04265544]
[1762479727417,0.04691675,155.24,155.2,3.05265544]
[1762479728714,0.04691675,155.24,155.2,8.85445544]
[1762479728913,0.04691675,155.24,155.2,3.05265544]
[1762479729414,4.79949201,155.33,155.23,3.01]
[1762479729611,4.79941957,155.32,155.23,3.01]
[1762479729810,4.79937056,155.31,155.23,3.01]
[1762479730007,0.44,155.31,155.23,3.01]
[1762479730407,0.48872162,155.29,155.25,0.04483001]
[1762479730616,5.8001,155.26,155.25,0.04646937]
[1762479731213,5.8007,155.24,155.19,3.05]
[1762479731417,0.44,155.26,155.15,3.05]
[1762479731621,7.48521072,155.28,155.09,3.05]
[1762479731622,0.44,155.23,155.09,3.05]
[1762479731811,5.23126307,155.22,155.09,3.05]
[1762479732010,0.44,155.22,155.11,3.05]
[1762479732220,0.04736075,155.18,155.15,0.04771314]
[1762479732718,0.44,155.26,155.15,3.09771314]
[1762479732921,0.44,155.26,155.15,3.05]
[1762479733516,0.44,155.26,155.17,3.05]
[1762479733922,0.0452168,155.23,155.2,3.09558724]
[1762479734816,0.5252168,155.23,155.2,0.04558724]
[1762479735011,0.0452168,155.23,155.2,3.09558724]
[1762479736816,0.0452168,155.23,155.2,0.04558724]
[1762479738122,0.5252168,155.23,155.2,0.04558724]
[1762479740122,0.0452168,155.23,155.2,3.09558724]
[1762479740918,0.0452168,155.23,155.2,0.04558724]
[1762479742121,0.0452168,155.23,155.2,3.09558724]
[1762479742315,0.0452168,155.23,155.22,3.05]
[1762479743427,5.25497577,155.31,155.24,3.05]
[1762479743816,0.48,155.31,155.17,3.05]
[1762479744019,7.48521072,155.34,155.17,3.05]
[1762479744225,6.2766,155.35,155.26,3.05]
[1762479744419,11.05157577,155.35,155.26,3.05]
[1762479744625,6.2766,155.35,155.26,3.05]
[1762479744822,10.57087577,155.37,155.29,5.7984]
[1762479745022,4.77497577,155.37,155.29,5.7984]
[1762479745423,0.04865851,155.35,155.31,0.04264637]
[1762479745926,0.04865851,155.35,155.31,3.09264637]
[1762479747335,0.04865851,155.35,155.31,0.04264637]
[1762479747633,0.04865851,155.35,155.31,3.09264637]
[1762479747834,0.04865851,155.35,155.31,8.89024637]
[1762479748032,0.04865851,155.35,155.32,3.05]
[1762479748341,0.04865851,155.35,155.32,8.8473]
[1762479748527,4.77497577,155.42,155.32,3.05]
[1762479748728,4.77497577,155.43,155.32,3.05]
[1762479748926,4.76620213,155.45,155.32,3.05]
[1762479749129,5.7936,155.43,155.37,3.05]
[1762479749432,4.76620213,155.45,155.37,3.05]
[1762479749626,0.04235914,155.42,155.38,3.09852514]
[1762479749827,0.04235914,155.42,155.39,3.05]
[1762479750632,0.04235914,155.42,155.41,3.05]
[1762479751828,0.48,155.51,155.41,3.05]
[1762479752427,5.7909,155.5,155.41,3.05]
[1762479752829,5.7909,155.5,155.35,62.0]
[1762479752830,0.04820716,155.47,155.44,3.09529623]
[1762479754230,0.04820716,155.47,155.44,0.04529623]
[1762479754435,0.52820716,155.47,155.44,0.04529623]
[1762479754638,0.04820716,155.47,155.44,0.04529623]
[1762479754832,0.52820716,155.47,155.44,0.04529623]
[1762479755431,0.48,155.46,155.31,3.05]
[1762479755632,5.23686545,155.46,155.31,3.05]
[1762479755829,5.7942,155.42,155.34,3.05]
[1762479756134,7.48521072,155.47,155.34,3.05]
[1762479756135,4.74743446,155.46,155.34,3.05]
[1762479756328,4.74551286,155.47,155.39,3.05]
[1762479756632,0.04730167,155.42,155.41,0.04699127]
[1762479756830,0.0449376,155.43,155.41,0.04699127]
[1762479757139,0.0449376,155.43,155.41,3.09699127]
[1762479758631,5.7913,155.49,155.41,3.09699127]
[1762479759030,5.17685729,155.5,155.42,8.7638]
[1762479759336,5.17685729,155.5,155.42,2.97]
[1762479759631,0.04401566,155.48,155.45,2.97]
[1762479759839,0.04401566,155.48,155.45,3.01657792]
[1762479761145,4.6917635,155.55,155.46,3.19]
[1762479761339,10.03039904,155.57,155.47,3.19]
[1762479761638,7.48521072,155.58,155.47,3.19]
[1762479761639,10.03039904,155.56,155.47,3.19]
[1762479761839,4.6917635,155.55,155.47,3.19]
[1762479762141,0.04356393,155.53,155.49,3.23177897]
[1762479762339,0.04277765,155.53,155.49,3.23164385]
[1762479764040,0.52277765,155.53,155.49,0.04164385]
[1762479764240,6.2707,155.51,155.49,0.04164385]
[1762479764643,6.2707,155.51,155.36,10.98]
[1762479764644,0.48,155.49,155.34,3.19]
[1762479764947,5.7925,155.46,155.38,3.19]
[1762479765650,0.04109759,155.44,155.41,3.19]
[1762479767241,0.04109759,155.44,155.4,3.23395261]
[1762479767655,0.04109759,155.44,155.4,9.02835261]
[1762479767848,0.04109759,155.44,155.41,3.19]
[1762479770351,0.04109759,155.44,155.42,3.19]
[1762479772245,0.04109759,155.44,155.4,0.04395261]
[1762479772246,1.80109759,155.44,155.4,0.04395261]
[1762479772440,0.52109759,155.44,155.4,0.04395261]
[1762479774542,0.48,155.42,155.4,0.04395261]
[1762479774745,0.48,155.41,155.34,8.9867]
[1762479774944,4.41505701,155.44,155.28,4.37395942]
[1762479774945,9.56884445,155.43,155.35,3.19]
[1762479775159,5.34780856,155.43,155.35,3.19]
[1762479775653,0.04222912,155.41,155.37,0.04642945]
[1762479777650,5.83672912,155.41,155.37,3.23642945]
[1762479777855,0.04222912,155.41,155.37,3.23642945]
[1762479778650,0.48,155.38,155.37,0.04642945]
[1762479779953,0.48,155.38,155.32,3.19]
[1762479780553,0.48,155.38,155.32,8.9873]
[1762479781055,0.04890947,155.37,155.33,0.04774374]
[1762479781455,0.04890947,155.37,155.34,5.7967]
[1762479781758,0.04890947,155.37,155.35,3.19]
[1762479782056,0.04890947,155.37,155.33,3.23774374]
[1762479782757,6.32480947,155.37,155.33,0.04774374]
[1762479782953,5.20010637,155.36,155.33,0.04774374]
[1762479783151,0.48,155.36,155.33,0.04774374]
[1762479783355,0.48,155.34,155.33,0.04774374]
[1762479783549,0.48,155.33,155.26,3.19]
[1762479783747,0.48,155.31,155.23,199.12237544]
[1762479783958,5.20178047,155.3,155.23,3.19]
[1762479784152,4.72176046,155.29,155.23,3.19]
[1762479784351,0.48,155.28,155.23,3.19]
[1762479784552,5.7999,155.26,155.24,0.04349403]
[1762479784949,0.48,155.25,155.24,0.04349403]
[1762479785158,5.8009,155.24,155.19,3.19]
[1762479785656,4.8874195,155.28,155.19,3.19]
[1762479785857,4.88792524,155.29,155.19,3.19]
[1762479786055,0.04494646,155.26,155.22,5.84831734]
[1762479786249,0.04494646,155.26,155.23,3.19]
[1762479786653,0.04494646,155.26,155.23,8.9907]
[1762479786853,0.04494646,155.26,155.24,3.19]
[1762479787453,0.04494646,155.26,155.25,3.19]
[1762479788660,0.04494646,155.26,155.23,3.19]
[1762479789262,0.04494646,155.26,155.23,8.9906]
[1762479789467,0.04494646,155.26,155.23,3.19]
[1762479789760,0.04494646,155.26,155.24,5.8003]
[1762479789962,0.52,155.34,155.25,3.19]
[1762479790169,0.52,155.32,155.25,3.19]
[1762479790365,10.18309625,155.31,155.19,3.19]
[1762479790665,10.18309625,155.3,155.19,3.19]
[1762479790860,10.18309625,155.3,155.23,0.04789712]
[1762479790861,0.04564257,155.26,155.23,0.04789712]
[1762479792467,0.04564257,155.26,155.23,3.03789712]
[1762479793359,0.56564257,155.26,155.23,0.04789712]
[1762479794167,6.3205,155.25,155.23,0.04789712]
[1762479794857,0.52,155.24,155.23,0.04789712]
[1762479799064,0.52,155.24,155.14,5.8041]
[1762479799065,0.52,155.22,155.15,2.99]
[1762479799666,5.8026,155.19,155.15,2.99]
[1762479800067,5.84521111,155.19,155.15,3.03853903]
[1762479800262,0.04261111,155.19,155.15,3.03853903]
[1762479800976,0.52,155.27,155.18,2.99]
[1762479801672,5.8008,155.24,155.18,2.99]
[1762479801876,0.52,155.24,155.15,2.99]
[1762479802071,0.56405295,155.21,155.18,0.04295954]
[1762479802571,0.04405295,155.21,155.18,0.04295954]
[1762479804169,0.04405295,155.21,155.18,3.03295954]
[1762479804566,0.04405295,155.21,155.18,0.04295954]
[1762479805174,0.04405295,155.21,155.11,62.0]
[1762479805175,1.84405295,155.21,155.1,2.99]
[1762479805373,0.52,155.17,155.05,2.99]
[1762479805676,5.8049,155.13,155.05,2.99]
[1762479806080,5.8049,155.13,155.07,8.7968]
[1762479806378,0.04407327,155.12,155.09,2.99]
[1762479806578,0.52,155.21,155.09,3.03544625]
[1762479806770,0.52,155.21,155.09,2.99]
[1762479807072,5.8026,155.19,155.13,8.7945]
[1762479807377,0.52,155.21,155.13,2.99]
[1762479807574,0.52,155.17,155.15,0.0464074]
[1762479807777,0.52,155.17,155.14,0.04764567]
[1762479807969,0.56852329,155.17,155.14,0.04764567]
[1762479808367,6.3237,155.16,155.14,0.04764567]
[1762479809170,0.52,155.16,155.14,0.04764567]
[1762479809879,5.85182329,155.17,155.14,0.04764567]
[1762479810381,0.04852329,155.17,155.14,3.03764567]
[1762479810681,0.04852329,155.17,155.14,0.04764567]
[1762479811085,0.56852329,155.17,155.14,0.04764567]
[1762479811669,0.52,155.15,155.14,0.04764567]
[1762479811878,0.56852329,155.17,155.14,0.04764567]
[1762479812180,6.37182329,155.17,155.14,0.04764567]
[1762479812377,0.56852329,155.17,155.14,0.04764567]
[1762479812786,5.8037,155.16,155.14,0.04764567]
[1762479813092,0.52,155.15,155.09,2.99]
[1762479813685,0.52,155.15,155.04,207.86368675]
[1762479813988,5.23181822,155.14,155.04,203.48972733]
[1762479814296,0.56378293,155.11,155.07,0.04188555]
[1762479814586,0.56378293,155.11,155.07,0.0442478]
[1762479814791,6.36938293,155.11,155.07,0.0442478]
[1762479815987,5.8059,155.1,155.07,0.0442478]
[1762479816188,0.52,155.1,155.07,0.0442478]
[1762479816987,0.04378293,155.11,155.07,3.0342478]
[1762479817393,0.04378293,155.11,155.1,2.99]
[1762479817693,0.52,155.18,155.1,2.99]
[1762479817889,5.84883887,155.24,155.15,3.09]
[1762479818092,0.52,155.22,155.1,7.46395942]
[1762479818392,9.66893899,155.23,155.14,3.09]
[1762479818393,9.66893899,155.21,155.14,3.09]
[1762479818695,0.04933756,155.18,155.14,3.13211522]
[1762479818989,0.04933756,155.18,155.14,3.13557256]
[1762479819180,0.04933756,155.18,155.17,3.09]
[1762479819582,0.04933756,155.18,155.14,3.13557256]
[1762479821087,0.04933756,155.18,155.15,3.03]
[1762479822995,0.04933756,155.18,155.17,3.03]
[1762479825095,0.52,155.25,155.19,3.03]
[1762479825096,6.3204,155.25,155.19,3.03]
[1762479825295,9.71408076,155.24,155.19,3.03]
[1762479825496,9.71408076,155.23,155.19,3.03]
[1762479825695,6.3204,155.25,155.19,3.03]
[1762479825896,9.56173192,155.24,155.2,3.03]
[1762479826093,9.56113215,155.23,155.2,3.07958395]
[1762479826293,0.04239843,155.24,155.2,3.07958395]
[1762479826486,0.04239843,155.24,155.22,3.03]
[1762479826689,4.26725943,155.27,155.22,3.03]
[1762479826886,5.7981,155.31,155.23,3.03]
[1762479827096,4.65868465,155.3,155.24,3.03]
[1762479827289,6.40190248,155.34,155.24,3.03]
[1762479827494,4.66298803,155.33,155.24,3.03]
[1762479827694,0.04214435,155.3,155.27,3.0746669]
[1762479828996,0.04214435,155.3,155.29,3.03]
[1762479829297,4.66036235,155.36,155.29,3.03]
[1762479829495,6.44190248,155.39,155.29,3.03]
[1762479829796,4.66146026,155.38,155.29,3.03]
[1762479830100,4.66146026,155.37,155.31,8.8277]
[1762479830399,0.04218746,155.35,155.32,3.07827422]
[1762479831092,0.04218746,155.35,155.34,3.03]
[1762479831300,4.65457289,155.42,155.34,3.03]
[1762479831492,4.65421655,155.41,155.34,3.03]
[1762479831689,5.7941,155.42,155.34,3.03]
[1762479831902,4.65442781,155.41,155.34,3.03]
[1762479832200,0.04729124,155.39,155.36,3.07132413]
[1762479832599,0.04729124,155.39,155.37,3.03]
[1762479833399,0.04729124,155.39,155.38,3.03]
[1762479833597,8.13646411,155.5,155.38,3.03]
[1762479833805,5.7918,155.48,155.38,3.03]
[1762479834108,5.33671463,155.47,155.38,3.03]
[1762479834305,6.4833,155.44,155.35,3.03]
[1762479834803,6.4833,155.44,155.38,0.04198104]
[1762479835000,4.64671463,155.49,155.39,3.03]
[1762479835304,0.69,155.5,155.42,3.07347372]
[1762479835497,0.69,155.5,155.42,3.03]
[1762479835807,0.69,155.5,155.44,0.04837796]
[1762479836793,5.7891,155.55,155.44,3.07837796]
[1762479836992,0.69,155.54,155.48,0.0446619]
[1762479837406,0.69,155.52,155.48,0.0446619]
[1762479838005,5.7909,155.5,155.48,0.0446619]
[1762479838199,0.69,155.49,155.4,3.03]
[1762479839304,0.73706614,155.46,155.43,0.04274447]
[1762479839502,0.73701594,155.46,155.43,0.04697019]
[1762479840007,6.52941594,155.46,155.43,0.04697019]
[1762479840199,0.69,155.45,155.43,0.04697019]
[1762479840604,0.69,155.44,155.36,3.03]
[1762479841202,0.69,155.44,155.32,28.0172]
[1762479841402,0.69,155.44,155.33,3.03]
[1762479841602,0.04592329,155.4,155.37,0.0465369]
[1762479841908,0.04592329,155.4,155.37,3.0765369]
[1762479842511,0.69,155.48,155.39,3.03]
[1762479843306,0.69,155.51,155.39,3.03]
[1762479843503,0.04247026,155.47,155.43,0.04126098]
[1762479843709,0.04247026,155.47,155.43,3.07126098]
[1762479844916,0.04247026,155.47,155.46,3.03]
[1762479845709,0.04247026,155.47,155.44,3.03]
[1762479846009,0.04247026,155.47,155.43,0.04126098]
[1762479846010,0.73247026,155.47,155.43,0.04126098]
[1762479846215,0.04247026,155.47,155.43,3.07126098]
[1762479848616,0.69,155.46,155.43,0.04126098]
[1762479849218,6.4829,155.45,155.38,3.03]
[1762479849418,0.69,155.45,155.34,3.03]
[1762479849810,5.795,155.39,155.34,3.03]
[1762479850313,0.04664042,155.38,155.35,0.04384748]
[1762479850519,0.04813526,155.38,155.35,0.04648186]
[1762479851914,5.84363526,155.38,155.35,0.04648186]
[1762479852116,0.04813526,155.38,155.35,0.04648186]
[1762479853114,5.84373526,155.38,155.35,0.04648186]
[1762479853413,0.7,155.37,155.35,0.04648186]
[1762479854312,5.84363526,155.38,155.35,0.04648186]
[1762479854518,0.7,155.36,155.35,0.04648186]
[1762479855312,0.7,155.35,155.26,3.2]
[1762479855720,6.497,155.34,155.26,3.2]
[1762479855908,0.7,155.34,155.26,3.2]
[1762479856115,68.34,155.38,155.26,3.2]
[1762479856315,0.0436625,155.34,155.3,3.24800653]
[1762479856611,0.04613798,155.34,155.3,3.24800653]
[1762479857418,0.04613798,155.34,155.32,3.2]
[1762479857816,0.04613798,155.34,155.33,3.2]
[1762479859318,0.04613798,155.34,155.31,3.2]
[1762479859820,0.04613798,155.34,155.32,3.2]
[1762479860818,0.04613798,155.34,155.32,8.9973]
[1762479861024,0.04613798,155.34,155.33,3.2]
[1762479863825,4.61562106,155.42,155.35,8.9964]
[1762479864129,4.9350544,155.41,155.35,3.2]
[1762479864319,0.7,155.44,155.35,8.9963]
[1762479864520,4.93841709,155.43,155.36,3.2]
[1762479864726,4.93841709,155.42,155.36,3.2]
[1762479864927,0.04921912,155.41,155.37,3.24714411]
[1762479866130,0.04921912,155.41,155.39,3.2]
[1762479866524,0.04921912,155.41,155.37,3.24714411]
[1762479866728,4.94917376,155.4,155.37,0.04714411]
[1762479866925,5.68917376,155.39,155.37,0.04714411]
[1762479867228,4.94917376,155.38,155.37,0.04714411]
[1762479868424,6.58361912,155.41,155.37,0.04714411]
[1762479868626,9.59645179,155.4,155.37,0.04714411]
[1762479868826,4.95762584,155.39,155.37,0.04714411]
[1762479869027,6.58361912,155.41,155.37,0.04714411]
[1762479869228,4.95869902,155.4,155.37,0.04714411]
[1762479869443,4.95869902,155.39,155.37,0.04714411]
[1762479869622,6.58361912,155.41,155.37,0.04714411]
[1762479869826,9.60618791,155.4,155.37,0.04714411]
[1762479870028,4.96263454,155.39,155.37,0.04714411]
[1762479870226,4.96263454,155.38,155.37,0.04714411]
[1762479870531,9.6119506,155.38,155.37,0.04714411]
[1762479871230,4.96263454,155.38,155.37,3.24714411]
[1762479871434,0.04921912,155.41,155.37,3.24714411]
[1762479871629,4.97584258,155.4,155.37,3.24714411]
[1762479871930,4.975588,155.39,155.37,3.24714411]
[1762479872122,0.04921912,155.41,155.37,3.24714411]
[1762479872326,9.63134247,155.4,155.37,3.24714411]
[1762479872626,9.63306145,155.39,155.37,3.24714411]
[1762479872825,4.97604452,155.38,155.37,0.04714411]
[1762479873027,9.63223485,155.38,155.37,0.04714411]
[1762479874320,4.97604452,155.38,155.37,3.24714411]
[1762479874526,0.04921912,155.41,155.37,3.24714411]
[1762479874825,0.74,155.39,155.37,0.04714411]
[1762479875024,9.64126855,155.38,155.37,0.04714411]
[1762479875225,5.7963,155.36,155.29,3.2]
[1762479875430,9.64124962,155.35,155.29,3.2]
[1762479875633,9.64124962,155.34,155.29,3.2]
[1762479875825,4.98009682,155.33,155.29,3.2]
[1762479876022,6.5471466,155.37,155.29,3.2]
[1762479876222,0.78749601,155.35,155.31,0.04295501]
[1762479876428,9.63990517,155.34,155.31,0.04295501]
[1762479876622,0.78749601,155.35,155.31,3.24295501]
[1762479876623,0.04749601,155.35,155.31,3.24295501]
[1762479876831,9.64588553,155.34,155.31,0.04295501]
[1762479877031,0.78749601,155.35,155.31,0.04295501]
[1762479877229,0.04749601,155.35,155.31,3.24295501]
[1762479877936,0.04749601,155.35,155.33,8.9169]
[1762479878135,0.04749601,155.35,155.33,3.12]
[1762479878337,0.04749601,155.35,155.31,3.16295501]
[1762479878640,0.78749601,155.35,155.31,0.04295501]
[1762479878939,0.04749601,155.35,155.31,3.16295501]
[1762479879138,0.04749601,155.35,155.32,3.12]
[1762479879341,0.78749601,155.35,155.31,0.04295501]
[1762479882140,0.04749601,155.35,155.32,3.11]
[1762479883633,0.04749601,155.35,155.34,3.11]
[1762479884343,0.04749601,155.35,155.31,3.15295501]
[1762479885248,0.78749601,155.35,155.31,0.04295501]
[1762479887240,0.78749601,155.35,155.23,3.11]
[1762479887241,0.74,155.33,155.23,3.11]
[1762479887436,5.39915469,155.32,155.24,5.8003]
[1762479887741,5.7977,155.32,155.23,3.11]
[1762479888244,0.04379266,155.29,155.26,3.15277627]
[1762479889040,0.04379266,155.29,155.26,8.95247627]
[1762479889243,0.78379266,155.29,155.26,0.04277627]
[1762479891235,0.74,155.27,155.26,0.04277627]
[1762479891936,0.74,155.25,155.19,74.0022]
[1762479892143,0.74,155.27,155.2,3.11]
[1762479892451,0.74,155.27,155.2,8.9119]
[1762479892838,0.74,155.27,155.22,0.04763119]
[1762479893046,0.78425859,155.25,155.22,0.04763119]
[1762479893247,0.78136163,155.25,155.22,0.04214659]
[1762479893746,0.74,155.23,155.22,0.04214659]
[1762479898556,0.74,155.21,155.15,5.8037]
[1762479899456,0.04446318,155.2,155.16,3.15885424]
[1762479899847,0.74,155.19,155.16,0.04885424]
[1762479900342,0.74,155.16,155.08,3.11]
[1762479900547,0.04446318,155.2,155.01,79.7977]
[1762479900548,4.63664673,155.19,155.1,3.11]
[1762479900751,0.74,155.19,155.1,3.11]
[1762479901453,0.0416325,155.16,155.14,8.9141]